[Event "Late-Titled-Tuesday-Blitz-February-06-2024"]
[Site "Chess.com"]
[Date "2024.02.06"]
[Round "10"]
[White "jinbojinbo"]
[Black "ural58"]
[Result "1-0"]
[WhiteElo "2629"]
[BlackElo "2482"]
[TimeControl "180+1"]
[EndTime "15:55:30 PST"]
[Termination "jinbojinbo won by resignation"]

1. Nf3 {[%clk 0:03:00.2]} 1... d5 {[%clk 0:02:55.9]} 2. e3 {[%clk 0:02:58.3]}
2... Nf6 {[%clk 0:02:54.2]} 3. c4 {[%clk 0:02:58.6]} 3... e6 {[%clk 0:02:44.5]}
4. b3 {[%clk 0:02:57.9]} 4... g6 {[%clk 0:02:42]} 5. Bb2 {[%clk 0:02:54.2]} 5...
Bg7 {[%clk 0:02:42]} 6. Be2 {[%clk 0:02:51.2]} 6... O-O {[%clk 0:02:41.8]} 7.
O-O {[%clk 0:02:51]} 7... c5 {[%clk 0:02:39.9]} 8. cxd5 {[%clk 0:02:47.8]} 8...
Nxd5 {[%clk 0:02:38]} 9. Bxg7 {[%clk 0:02:46.9]} 9... Kxg7 {[%clk 0:02:38.2]}
10. d4 {[%clk 0:02:47.2]} 10... cxd4 {[%clk 0:02:28.6]} 11. Qxd4+ {[%clk
0:02:45.5]} 11... Qf6 {[%clk 0:02:28.3]} 12. Nbd2 {[%clk 0:02:38.9]} 12... Nc6
{[%clk 0:02:28.1]} 13. Qxf6+ {[%clk 0:02:37.2]} 13... Kxf6 {[%clk 0:02:23.1]}
14. Ne4+ {[%clk 0:02:37.3]} 14... Ke7 {[%clk 0:02:23.2]} 15. Rac1 {[%clk
0:02:36.9]} 15... Rd8 {[%clk 0:02:14.6]} 16. Nc5 {[%clk 0:02:34.8]} 16... Rb8
{[%clk 0:02:12.2]} 17. a3 {[%clk 0:02:26.7]} 17... Bd7 {[%clk 0:02:11.9]} 18. b4
{[%clk 0:02:24.4]} 18... Be8 {[%clk 0:02:09.7]} 19. b5 {[%clk 0:02:23.3]} 19...
Na5 {[%clk 0:02:09.1]} 20. Nd4 {[%clk 0:02:10]} 20... e5 {[%clk 0:01:58.5]} 21.
Nf3 {[%clk 0:02:09.6]} 21... f6 {[%clk 0:01:56.3]} 22. g4 {[%clk 0:02:06.7]}
22... h6 {[%clk 0:01:53.7]} 23. Rfd1 {[%clk 0:02:01.5]} 23... Rbc8 {[%clk
0:01:51.4]} 24. Nd2 {[%clk 0:01:57.4]} 24... b6 {[%clk 0:01:49.2]} 25. Nce4
{[%clk 0:01:55.3]} 25... f5 {[%clk 0:01:46.8]} 26. Rxc8 {[%clk 0:01:31.8]} 26...
Rxc8 {[%clk 0:01:46]} 27. gxf5 {[%clk 0:01:32]} 27... gxf5 {[%clk 0:01:45.7]}
28. Nf1 {[%clk 0:01:25.6]} 28... Bf7 {[%clk 0:01:33.7]} 29. Neg3 {[%clk
0:01:20.4]} 29... Nc3 {[%clk 0:01:33.4]} 30. Rd2 {[%clk 0:01:13.1]} 30... Nxe2+
{[%clk 0:01:33.3]} 31. Rxe2 {[%clk 0:01:08.8]} 31... Be6 {[%clk 0:01:28.3]} 32.
Re1 {[%clk 0:01:04.4]} 32... Rg8 {[%clk 0:01:24.3]} 33. f4 {[%clk 0:01:01.8]}
33... h5 {[%clk 0:01:21.5]} 34. Kf2 {[%clk 0:00:56.1]} 34... h4 {[%clk
0:01:21.6]} 35. Ne2 {[%clk 0:00:55.9]} 35... Nc4 {[%clk 0:01:20]} 36. Rc1 {[%clk
0:00:54.3]} 36... Rd8 {[%clk 0:01:13.3]} 37. a4 {[%clk 0:00:51.5]} 37... Kf6
{[%clk 0:01:08.3]} 38. fxe5+ {[%clk 0:00:49.5]} 38... Nxe5 {[%clk 0:01:07.7]}
39. Nf4 {[%clk 0:00:46.1]} 39... Nd3+ {[%clk 0:01:04.5]} 40. Nxd3 {[%clk
0:00:45.9]} 40... Rxd3 {[%clk 0:01:05.1]} 41. Rc7 {[%clk 0:00:46.2]} 41... Rd7
{[%clk 0:00:55.5]} 42. Rc6 {[%clk 0:00:42.9]} 42... Ke5 {[%clk 0:00:51.9]} 43.
Ke2 {[%clk 0:00:39.9]} 43... Bd5 {[%clk 0:00:49.3]} 44. Rc3 {[%clk 0:00:39.3]}
44... Rg7 {[%clk 0:00:43.2]} 45. Ke1 {[%clk 0:00:38.5]} 45... Rg2 {[%clk
0:00:40.9]} 46. Rc7 {[%clk 0:00:38.5]} 46... Bf3 {[%clk 0:00:39]} 47. Nd2 {[%clk
0:00:25.3]} 47... Re2+ {[%clk 0:00:37.4]} 48. Kd1 {[%clk 0:00:25.7]} 48... Bg4
{[%clk 0:00:36.3]} 49. Kc1 {[%clk 0:00:23.5]} 49... Rxh2 {[%clk 0:00:30.1]} 50.
Rxa7 {[%clk 0:00:23.8]} 50... h3 {[%clk 0:00:27.5]} 51. a5 {[%clk 0:00:23.8]}
51... bxa5 {[%clk 0:00:21]} 52. b6 {[%clk 0:00:24]} 52... Rh1+ {[%clk
0:00:19.7]} 53. Kc2 {[%clk 0:00:23.6]} 53... Bd1+ {[%clk 0:00:19.2]} 54. Kb2
{[%clk 0:00:23.3]} 54... Rg1 {[%clk 0:00:17.6]} 55. b7 {[%clk 0:00:18.6]} 55...
Rg8 {[%clk 0:00:17.3]} 56. Ra8 {[%clk 0:00:18.8]} 56... h2 {[%clk 0:00:11.1]}
57. Rxg8 {[%clk 0:00:18.4]} 57... h1=Q {[%clk 0:00:12]} 58. b8=Q+ {[%clk
0:00:18.6]} 58... Kf6 {[%clk 0:00:12.5]} 59. Qd6+ {[%clk 0:00:18.1]} 1-0

[Event "Late-Titled-Tuesday-Blitz-February-06-2024"]
[Site "Chess.com"]
[Date "2024.02.06"]
[Round "10"]
[White "gahryman"]
[Black "andrzej"]
[Result "1-0"]
[WhiteElo "2667"]
[BlackElo "2455"]
[TimeControl "180+1"]
[EndTime "15:55:32 PST"]
[Termination "gahryman won on time"]

1. e4 {[%clk 0:03:00.9]} 1... e5 {[%clk 0:02:58.9]} 2. Nf3 {[%clk 0:03:00.8]}
2... Nf6 {[%clk 0:02:59.5]} 3. d4 {[%clk 0:02:57.4]} 3... Nxe4 {[%clk
0:02:59.2]} 4. Bd3 {[%clk 0:02:56.6]} 4... d5 {[%clk 0:02:59.3]} 5. Nxe5 {[%clk
0:02:53.6]} 5... Bd6 {[%clk 0:02:59.7]} 6. O-O {[%clk 0:02:51.7]} 6... O-O
{[%clk 0:03:00.2]} 7. Nc3 {[%clk 0:02:51.4]} 7... Nxc3 {[%clk 0:02:57.3]} 8.
bxc3 {[%clk 0:02:51.3]} 8... Nd7 {[%clk 0:02:54.2]} 9. Re1 {[%clk 0:02:37.7]}
9... c5 {[%clk 0:02:53.9]} 10. Bf4 {[%clk 0:02:20]} 10... c4 {[%clk 0:02:40]}
11. Be2 {[%clk 0:01:51.8]} 11... Nf6 {[%clk 0:02:36.5]} 12. Bf3 {[%clk
0:01:50.2]} 12... h6 {[%clk 0:02:31.9]} 13. Rb1 {[%clk 0:01:47]} 13... Rb8
{[%clk 0:02:30.2]} 14. Qd2 {[%clk 0:01:43.2]} 14... Bf5 {[%clk 0:02:28.8]} 15.
Bg3 {[%clk 0:01:25.5]} 15... Ne4 {[%clk 0:02:26.1]} 16. Bxe4 {[%clk 0:01:24.5]}
16... Bxe4 {[%clk 0:02:26.3]} 17. f3 {[%clk 0:01:19]} 17... Bf5 {[%clk
0:02:26.1]} 18. Rb5 {[%clk 0:01:06.8]} 18... Bc7 {[%clk 0:02:19.7]} 19. Reb1
{[%clk 0:01:05.5]} 19... b6 {[%clk 0:02:19.2]} 20. Nc6 {[%clk 0:01:02.8]} 20...
Qd7 {[%clk 0:02:06.3]} 21. Nxb8 {[%clk 0:00:59.8]} 21... Bxb8 {[%clk 0:02:06.2]}
22. Bxb8 {[%clk 0:00:59.6]} 22... Rxb8 {[%clk 0:02:07.1]} 23. a4 {[%clk
0:00:58.4]} 23... Re8 {[%clk 0:02:00.4]} 24. a5 {[%clk 0:00:52.2]} 24... bxa5
{[%clk 0:01:57]} 25. Rxa5 {[%clk 0:00:51.8]} 25... Qe6 {[%clk 0:01:51.6]} 26.
Kf2 {[%clk 0:00:46.6]} 26... Qf6 {[%clk 0:01:48.1]} 27. Rxd5 {[%clk 0:00:40.8]}
27... Qh4+ {[%clk 0:01:35.4]} 28. Kg1 {[%clk 0:00:40.7]} 28... Bxc2 {[%clk
0:01:35.2]} 29. Re5 {[%clk 0:00:18.3]} 29... Rxe5 {[%clk 0:01:03.7]} 30. Rb8+
{[%clk 0:00:17.2]} 30... Kh7 {[%clk 0:01:02.8]} 31. dxe5 {[%clk 0:00:17.8]}
31... Bd3 {[%clk 0:00:59.2]} 32. Qe3 {[%clk 0:00:15.2]} 32... a5 {[%clk
0:00:47.4]} 33. Ra8 {[%clk 0:00:13.7]} 33... a4 {[%clk 0:00:34.8]} 34. Rxa4
{[%clk 0:00:13.2]} 34... Qd8 {[%clk 0:00:35.5]} 35. Ra1 {[%clk 0:00:12.3]} 35...
Qd5 {[%clk 0:00:33.3]} 36. Re1 {[%clk 0:00:11.5]} 36... Qa5 {[%clk 0:00:23.2]}
37. Qd2 {[%clk 0:00:09.7]} 37... Qb6+ {[%clk 0:00:17.8]} 38. Kh1 {[%clk
0:00:09.8]} 38... Kg8 {[%clk 0:00:16.3]} 39. h3 {[%clk 0:00:10.1]} 39... Kh7
{[%clk 0:00:15.6]} 40. Qe3 {[%clk 0:00:09.9]} 40... Qb2 {[%clk 0:00:15]} 41. Qd4
{[%clk 0:00:08.1]} 41... Qd2 {[%clk 0:00:15.3]} 42. Rg1 {[%clk 0:00:07.8]} 42...
Qe2 {[%clk 0:00:11.5]} 43. Qd5 {[%clk 0:00:07.6]} 43... Bg6 {[%clk 0:00:09.6]}
44. Qd4 {[%clk 0:00:07.5]} 44... Bd3 {[%clk 0:00:09.4]} 45. Qf4 {[%clk
0:00:07.7]} 45... Kg8 {[%clk 0:00:06.7]} 46. Kh2 {[%clk 0:00:07.7]} 46... Qc2
{[%clk 0:00:06.6]} 47. Qd4 {[%clk 0:00:07.3]} 47... Qe2 {[%clk 0:00:06.7]} 48.
Qf4 {[%clk 0:00:06.3]} 48... Qc2 {[%clk 0:00:06.6]} 49. e6 {[%clk 0:00:06.2]}
49... fxe6 {[%clk 0:00:06.5]} 50. Qe5 {[%clk 0:00:06.8]} 50... Bf5 {[%clk
0:00:05.7]} 51. Ra1 {[%clk 0:00:06.7]} 51... Qf2 {[%clk 0:00:01.1]} 52. Ra8+
{[%clk 0:00:06]} 52... Kh7 {[%clk 0:00:01.3]} 53. Re8 {[%clk 0:00:06.2]} 1-0

[Event "Late-Titled-Tuesday-Blitz-February-06-2024"]
[Site "Chess.com"]
[Date "2024.02.06"]
[Round "10"]
[White "LyonBeast"]
[Black "SpeedofLight0"]
[Result "1-0"]
[WhiteElo "3180"]
[BlackElo "3048"]
[TimeControl "180+1"]
[EndTime "15:55:37 PST"]
[Termination "LyonBeast won by resignation"]

1. e4 {[%clk 0:03:00.9]} 1... Nc6 {[%clk 0:02:58.7]} 2. Nf3 {[%clk 0:03:00.3]}
2... d6 {[%clk 0:02:58.8]} 3. d4 {[%clk 0:03:00.3]} 3... Nf6 {[%clk 0:02:58.9]}
4. d5 {[%clk 0:02:57.9]} 4... Nb8 {[%clk 0:02:56.3]} 5. Bd3 {[%clk 0:02:58.5]}
5... Bg4 {[%clk 0:02:55.5]} 6. Nbd2 {[%clk 0:02:58.2]} 6... g6 {[%clk
0:02:53.7]} 7. h3 {[%clk 0:02:56.9]} 7... Bxf3 {[%clk 0:02:53.5]} 8. Nxf3 {[%clk
0:02:57.8]} 8... Bg7 {[%clk 0:02:54.1]} 9. O-O {[%clk 0:02:56.8]} 9... O-O
{[%clk 0:02:54.7]} 10. c3 {[%clk 0:02:56.6]} 10... c6 {[%clk 0:02:50.4]} 11. Bc2
{[%clk 0:02:54.7]} 11... Nbd7 {[%clk 0:02:48.5]} 12. Re1 {[%clk 0:02:53.3]}
12... a5 {[%clk 0:02:46.6]} 13. a4 {[%clk 0:02:33.7]} 13... Qc7 {[%clk
0:02:39.8]} 14. Be3 {[%clk 0:02:31.1]} 14... Nb6 {[%clk 0:02:28.2]} 15. Bb3
{[%clk 0:02:30]} 15... Rac8 {[%clk 0:02:21.8]} 16. dxc6 {[%clk 0:02:04.7]} 16...
bxc6 {[%clk 0:02:19.8]} 17. e5 {[%clk 0:02:05.1]} 17... dxe5 {[%clk 0:02:07.2]}
18. Nxe5 {[%clk 0:01:58]} 18... Nfd5 {[%clk 0:02:07.3]} 19. Bxb6 {[%clk
0:01:48.2]} 19... Nxb6 {[%clk 0:02:08.2]} 20. Qe2 {[%clk 0:01:37.5]} 20... e6
{[%clk 0:02:08.1]} 21. Nxf7 {[%clk 0:01:37.6]} 21... Rxf7 {[%clk 0:02:04.3]} 22.
Bxe6 {[%clk 0:01:36.1]} 22... Rf8 {[%clk 0:01:57.1]} 23. Rad1 {[%clk 0:01:32.3]}
23... Kh8 {[%clk 0:01:45.9]} 24. Bxf7 {[%clk 0:01:32.4]} 24... Qxf7 {[%clk
0:01:46.8]} 25. Rd6 {[%clk 0:01:32.4]} 25... Nxa4 {[%clk 0:01:21.6]} 26. Rxc6
{[%clk 0:01:32.4]} 26... Qb7 {[%clk 0:01:21.3]} 27. Rc4 {[%clk 0:01:11.3]} 27...
Qb3 {[%clk 0:01:06.4]} 28. Rc7 {[%clk 0:01:07]} 28... Qxb2 {[%clk 0:00:48.5]}
29. Qxb2 {[%clk 0:00:59.5]} 29... Nxb2 {[%clk 0:00:49.4]} 30. Ree7 {[%clk
0:00:59.7]} 30... Rg8 {[%clk 0:00:49.3]} 31. Ra7 {[%clk 0:00:57.6]} 31... a4
{[%clk 0:00:47.9]} 32. Reb7 {[%clk 0:00:56.1]} 32... Nd1 {[%clk 0:00:45.5]} 33.
c4 {[%clk 0:00:55.8]} 33... Nc3 {[%clk 0:00:43.5]} 34. c5 {[%clk 0:00:50.6]}
34... Ne2+ {[%clk 0:00:34.1]} 35. Kf1 {[%clk 0:00:48.8]} 35... Nd4 {[%clk
0:00:35]} 36. Rxa4 {[%clk 0:00:45.9]} 36... Rc8 {[%clk 0:00:30.9]} 37. Raa7
{[%clk 0:00:43.1]} 37... Bf8 {[%clk 0:00:24.9]} 38. Rxh7+ {[%clk 0:00:42.1]}
38... Kg8 {[%clk 0:00:25]} 39. Rhc7 {[%clk 0:00:42.4]} 39... Rxc7 {[%clk
0:00:17.4]} 40. Rxc7 {[%clk 0:00:43.3]} 40... Ne6 {[%clk 0:00:17.8]} 41. Rc8
{[%clk 0:00:37.5]} 41... Nxc5 {[%clk 0:00:17.2]} 42. h4 {[%clk 0:00:33.4]} 42...
Kf7 {[%clk 0:00:17.1]} 43. g3 {[%clk 0:00:33]} 43... Ne6 {[%clk 0:00:17.1]} 44.
Kg2 {[%clk 0:00:33.1]} 44... Bd6 {[%clk 0:00:17.2]} 45. Rc4 {[%clk 0:00:32.3]}
45... Kf6 {[%clk 0:00:17]} 46. f4 {[%clk 0:00:31.9]} 46... Kf5 {[%clk
0:00:14.9]} 47. Kf3 {[%clk 0:00:32.2]} 47... Kf6 {[%clk 0:00:14.5]} 48. Kg4
{[%clk 0:00:31]} 48... Be7 {[%clk 0:00:09.4]} 49. Rc6 {[%clk 0:00:20.9]} 49...
Kf7 {[%clk 0:00:09.7]} 50. h5 {[%clk 0:00:19.9]} 50... gxh5+ {[%clk 0:00:09.1]}
51. Kxh5 {[%clk 0:00:20.8]} 51... Nd4 {[%clk 0:00:09]} 52. Ra6 {[%clk
0:00:20.9]} 52... Bb4 {[%clk 0:00:07.4]} 53. Kg4 {[%clk 0:00:19.2]} 53... Be1
{[%clk 0:00:06.7]} 54. Ra1 {[%clk 0:00:19.2]} 54... Bf2 {[%clk 0:00:06]} 55. Rf1
{[%clk 0:00:18.9]} 55... Be3 {[%clk 0:00:06.5]} 56. Re1 {[%clk 0:00:17.2]} 56...
Bf2 {[%clk 0:00:06.6]} 57. Re4 {[%clk 0:00:16.9]} 57... Kf6 {[%clk 0:00:06.6]}
58. Kh3 {[%clk 0:00:16.9]} 58... Nc6 {[%clk 0:00:04.4]} 59. g4 {[%clk
0:00:16.2]} 59... Bc5 {[%clk 0:00:02.9]} 60. Rc4 {[%clk 0:00:15.6]} 60... Nd4
{[%clk 0:00:03.3]} 61. Rxc5 {[%clk 0:00:15.7]} 61... Ne6 {[%clk 0:00:04.1]} 62.
Rc6 {[%clk 0:00:15.8]} 62... Ke7 {[%clk 0:00:04.8]} 63. Rxe6+ {[%clk 0:00:16.2]}
63... Kxe6 {[%clk 0:00:05.7]} 64. Kh4 {[%clk 0:00:16.1]} 64... Kf6 {[%clk
0:00:06.6]} 65. Kh5 {[%clk 0:00:16.8]} 65... Kg7 {[%clk 0:00:07.5]} 66. Kg5
{[%clk 0:00:17.2]} 66... Kf7 {[%clk 0:00:08.4]} 67. f5 {[%clk 0:00:17.8]} 67...
Kg7 {[%clk 0:00:09.3]} 68. f6+ {[%clk 0:00:18.2]} 68... Kf7 {[%clk 0:00:10.2]}
69. Kf5 {[%clk 0:00:18.9]} 69... Kf8 {[%clk 0:00:10.8]} 70. Kg6 {[%clk
0:00:19.3]} 70... Kg8 {[%clk 0:00:11.7]} 71. f7+ {[%clk 0:00:19.4]} 71... Kf8
{[%clk 0:00:12.6]} 72. g5 {[%clk 0:00:19.7]} 72... Ke7 {[%clk 0:00:13]} 73. Kg7
{[%clk 0:00:20.2]} 1-0

[Event "Late-Titled-Tuesday-Blitz-February-06-2024"]
[Site "Chess.com"]
[Date "2024.02.06"]
[Round "10"]
[White "masnyszachistaaa"]
[Black "IMSlavin"]
[Result "1-0"]
[WhiteElo "2550"]
[BlackElo "2353"]
[TimeControl "180+1"]
[EndTime "15:55:39 PST"]
[Termination "masnyszachistaaa won on time"]

1. Nf3 {[%clk 0:03:00.9]} 1... Nc6 {[%clk 0:02:59.3]} 2. e4 {[%clk 0:02:57.4]}
2... d6 {[%clk 0:02:59.4]} 3. d4 {[%clk 0:02:51.9]} 3... Nf6 {[%clk 0:02:59.2]}
4. Nc3 {[%clk 0:02:46.1]} 4... Bg4 {[%clk 0:02:59.3]} 5. Bb5 {[%clk 0:02:46.6]}
5... a6 {[%clk 0:02:59.1]} 6. Bxc6+ {[%clk 0:02:46.7]} 6... bxc6 {[%clk
0:03:00]} 7. O-O {[%clk 0:02:46.6]} 7... e6 {[%clk 0:02:57.5]} 8. h3 {[%clk
0:02:45.2]} 8... Bh5 {[%clk 0:02:57.4]} 9. Re1 {[%clk 0:02:39.6]} 9... Be7
{[%clk 0:02:57.3]} 10. Bf4 {[%clk 0:02:31.2]} 10... O-O {[%clk 0:02:56.8]} 11.
Qd3 {[%clk 0:02:31]} 11... a5 {[%clk 0:02:53.3]} 12. Ne2 {[%clk 0:02:26.5]}
12... Bg6 {[%clk 0:02:50.5]} 13. Ng3 {[%clk 0:02:26]} 13... Nd7 {[%clk
0:02:45.5]} 14. Qd2 {[%clk 0:02:20.6]} 14... c5 {[%clk 0:02:44.2]} 15. c3 {[%clk
0:02:18.7]} 15... cxd4 {[%clk 0:02:42.7]} 16. cxd4 {[%clk 0:02:19.6]} 16... c5
{[%clk 0:02:42.7]} 17. Rac1 {[%clk 0:02:14.7]} 17... cxd4 {[%clk 0:02:40.7]} 18.
Nxd4 {[%clk 0:02:15.6]} 18... Ne5 {[%clk 0:02:28]} 19. Qe3 {[%clk 0:01:49.5]}
19... Qb6 {[%clk 0:02:21]} 20. Nc6 {[%clk 0:01:38.7]} 20... Qb7 {[%clk
0:02:05.7]} 21. Nxe5 {[%clk 0:01:35.3]} 21... dxe5 {[%clk 0:02:04.2]} 22. Bxe5
{[%clk 0:01:36.2]} 22... Bf6 {[%clk 0:01:43.6]} 23. Bxf6 {[%clk 0:01:28.7]}
23... gxf6 {[%clk 0:01:43.3]} 24. Qc3 {[%clk 0:01:20]} 24... e5 {[%clk
0:01:23.4]} 25. h4 {[%clk 0:01:10.9]} 25... Rac8 {[%clk 0:01:14.3]} 26. Qf3
{[%clk 0:00:58.1]} 26... Rxc1 {[%clk 0:01:11.7]} 27. Rxc1 {[%clk 0:00:59]} 27...
Qxb2 {[%clk 0:01:11.3]} 28. Rc6 {[%clk 0:00:59]} 28... h5 {[%clk 0:00:59.6]} 29.
Nxh5 {[%clk 0:00:20.2]} 29... Bxh5 {[%clk 0:00:53.5]} 30. Qxh5 {[%clk
0:00:21.1]} 30... Qb1+ {[%clk 0:00:52.5]} 31. Kh2 {[%clk 0:00:21.8]} 31... Qxe4
{[%clk 0:00:52.6]} 32. Rc3 {[%clk 0:00:14.6]} 32... Qh7 {[%clk 0:00:34]} 33.
Rg3+ {[%clk 0:00:11.1]} 33... Kh8 {[%clk 0:00:33.8]} 34. Qg4 {[%clk 0:00:11.3]}
34... f5 {[%clk 0:00:14.3]} 35. Qg5 {[%clk 0:00:10.5]} 35... f6 {[%clk
0:00:12.3]} 36. Qg6 {[%clk 0:00:08.4]} 36... f4 {[%clk 0:00:10.6]} 37. Rg4
{[%clk 0:00:06.2]} 37... Qxg6 {[%clk 0:00:10.2]} 38. Rxg6 {[%clk 0:00:07.1]}
38... Kh7 {[%clk 0:00:10.6]} 39. h5 {[%clk 0:00:07.5]} 39... Rf7 {[%clk
0:00:10.3]} 40. Kh3 {[%clk 0:00:07.6]} 40... a4 {[%clk 0:00:07.6]} 41. Kg4
{[%clk 0:00:07.3]} 41... Rg7 {[%clk 0:00:04.6]} 42. Rxg7+ {[%clk 0:00:06]} 42...
Kxg7 {[%clk 0:00:04.6]} 43. Kf5 {[%clk 0:00:04]} 43... Kh6 {[%clk 0:00:03.1]}
44. f3 {[%clk 0:00:04.6]} 44... Kxh5 {[%clk 0:00:02.2]} 45. Kxf6 {[%clk
0:00:05.2]} 45... Kh4 {[%clk 0:00:02.2]} 46. Kxe5 {[%clk 0:00:05.2]} 46... Kg3
{[%clk 0:00:02.4]} 47. Ke4 {[%clk 0:00:05.3]} 47... Kxg2 {[%clk 0:00:02.5]} 48.
Kxf4 {[%clk 0:00:05.8]} 48... Kf2 {[%clk 0:00:02.7]} 49. Ke4 {[%clk 0:00:06.3]}
49... Ke2 {[%clk 0:00:03.1]} 50. f4 {[%clk 0:00:07.2]} 50... Kd2 {[%clk
0:00:03.7]} 51. f5 {[%clk 0:00:08.1]} 51... Kc2 {[%clk 0:00:03.8]} 52. f6 {[%clk
0:00:09]} 52... Kb2 {[%clk 0:00:04.6]} 53. f7 {[%clk 0:00:09.6]} 53... Kxa2
{[%clk 0:00:04.7]} 54. f8=Q {[%clk 0:00:10]} 54... a3 {[%clk 0:00:05.2]} 55. Qb4
{[%clk 0:00:09.2]} 55... Ka1 {[%clk 0:00:04.1]} 56. Qxa3+ {[%clk 0:00:10.1]} 1-0

[Event "Late-Titled-Tuesday-Blitz-February-06-2024"]
[Site "Chess.com"]
[Date "2024.02.06"]
[Round "10"]
[White "ChessSwole"]
[Black "Cambek64"]
[Result "1-0"]
[WhiteElo "2674"]
[BlackElo "2501"]
[TimeControl "180+1"]
[EndTime "15:55:40 PST"]
[Termination "ChessSwole won on time"]

1. e4 {[%clk 0:03:00.9]} 1... e6 {[%clk 0:02:48.6]} 2. d4 {[%clk 0:03:00.5]}
2... d5 {[%clk 0:02:48.5]} 3. Nc3 {[%clk 0:03:01.2]} 3... Nc6 {[%clk 0:02:48.4]}
4. Nf3 {[%clk 0:03:00.7]} 4... Nf6 {[%clk 0:02:48.2]} 5. Bd3 {[%clk 0:02:52.4]}
5... Nb4 {[%clk 0:02:47.2]} 6. O-O {[%clk 0:02:52.3]} 6... Be7 {[%clk
0:02:47.6]} 7. e5 {[%clk 0:02:46]} 7... Nd7 {[%clk 0:02:46]} 8. Be2 {[%clk
0:02:45.4]} 8... c5 {[%clk 0:02:44.4]} 9. dxc5 {[%clk 0:02:38.5]} 9... Nxc5
{[%clk 0:02:42.3]} 10. a3 {[%clk 0:02:37.3]} 10... Nc6 {[%clk 0:02:41.6]} 11. b4
{[%clk 0:02:37.2]} 11... Nd7 {[%clk 0:02:40.9]} 12. Bf4 {[%clk 0:02:35.7]} 12...
O-O {[%clk 0:02:35.6]} 13. Re1 {[%clk 0:02:34.7]} 13... a6 {[%clk 0:02:35.7]}
14. Bd3 {[%clk 0:02:31]} 14... b5 {[%clk 0:02:34.4]} 15. Ne2 {[%clk 0:02:24.9]}
15... Bb7 {[%clk 0:02:34]} 16. Ng3 {[%clk 0:02:20.2]} 16... f5 {[%clk
0:02:20.7]} 17. c3 {[%clk 0:01:50]} 17... g5 {[%clk 0:02:13.9]} 18. Bd2 {[%clk
0:01:48.6]} 18... g4 {[%clk 0:02:12.9]} 19. Nd4 {[%clk 0:01:48.8]} 19... Nxd4
{[%clk 0:02:04.2]} 20. cxd4 {[%clk 0:01:49.7]} 20... Nb6 {[%clk 0:01:56.8]} 21.
f3 {[%clk 0:01:42]} 21... gxf3 {[%clk 0:01:55.6]} 22. Qxf3 {[%clk 0:01:41.5]}
22... Kh8 {[%clk 0:01:55.2]} 23. Qh5 {[%clk 0:01:33.9]} 23... Qe8 {[%clk
0:01:47.3]} 24. Qh3 {[%clk 0:01:19]} 24... Qg6 {[%clk 0:01:41.7]} 25. Nh5 {[%clk
0:01:15.9]} 25... Rg8 {[%clk 0:01:40.4]} 26. Nf4 {[%clk 0:01:15.6]} 26... Qf7
{[%clk 0:01:39.4]} 27. Rf1 {[%clk 0:01:07.4]} 27... Nc4 {[%clk 0:01:36.8]} 28.
Bc1 {[%clk 0:01:00.9]} 28... Rg4 {[%clk 0:01:32.8]} 29. Nxe6 {[%clk 0:01:00.1]}
29... Rag8 {[%clk 0:01:28.7]} 30. Nf4 {[%clk 0:00:50.2]} 30... Bg5 {[%clk
0:01:03.6]} 31. Ra2 {[%clk 0:00:39.9]} 31... Bc8 {[%clk 0:00:28.6]} 32. Qxg4
{[%clk 0:00:33.3]} 32... fxg4 {[%clk 0:00:23.4]} 33. Ng6+ {[%clk 0:00:33.6]}
33... Qxg6 {[%clk 0:00:23.6]} 34. Bxg6 {[%clk 0:00:34]} 34... Rxg6 {[%clk
0:00:24]} 35. Bxg5 {[%clk 0:00:33.7]} 35... Rxg5 {[%clk 0:00:21.9]} 36. Raf2
{[%clk 0:00:33.7]} 36... Be6 {[%clk 0:00:20.1]} 37. Rf8+ {[%clk 0:00:29.7]}
37... Kg7 {[%clk 0:00:17.4]} 38. Re8 {[%clk 0:00:26.1]} 38... Rg6 {[%clk
0:00:16.5]} 39. Re7+ {[%clk 0:00:24.1]} 39... Kh6 {[%clk 0:00:16.8]} 40. Rf6
{[%clk 0:00:24.4]} 40... Bg8 {[%clk 0:00:12.4]} 41. Ra7 {[%clk 0:00:18]} 41...
Nxa3 {[%clk 0:00:11.5]} 42. Raxa6 {[%clk 0:00:18.4]} 42... Nc2 {[%clk
0:00:10.8]} 43. Ra8 {[%clk 0:00:15.6]} 43... Be6 {[%clk 0:00:09.8]} 44. Re8
{[%clk 0:00:14.8]} 44... Nxd4 {[%clk 0:00:09]} 45. Kf2 {[%clk 0:00:14.3]} 45...
Kg5 {[%clk 0:00:08]} 46. Rff8 {[%clk 0:00:12.6]} 46... Nf5 {[%clk 0:00:06.9]}
47. g3 {[%clk 0:00:11.1]} 47... h5 {[%clk 0:00:07.2]} 48. Rb8 {[%clk 0:00:08.7]}
48... d4 {[%clk 0:00:06]} 49. Rxb5 {[%clk 0:00:08.3]} 49... Rg7 {[%clk
0:00:05.1]} 50. Rbb8 {[%clk 0:00:07.3]} 50... Bd5 {[%clk 0:00:04.6]} 51. Rbd8
{[%clk 0:00:07.4]} 51... Bf3 {[%clk 0:00:02.4]} 52. e6 {[%clk 0:00:06.8]} 52...
h4 {[%clk 0:00:01.3]} 53. Rf7 {[%clk 0:00:06.2]} 53... hxg3+ {[%clk 0:00:01.4]}
54. hxg3 {[%clk 0:00:07.1]} 1-0